fUSD/lending_fUSD_20240720
["ID","MTS","AMOUNT","RATE_DAILY","PERIOD"]
[332723871,1721480282231,-225.37992878,0.00036623,120]
[332723872,1721480282256,-951.08194783,0.00036623,120]
[332723873,1721480282281,-1000.0,0.00036623,60]
[332723874,1721480282305,-1933.25097697,0.00036623,120]
[332723875,1721480282330,-1346.48784657,0.00036623,120]
[332723876,1721480282356,-1264.50976452,0.00036623,120]
[332723877,1721480282382,-2170.53858332,0.00036623,120]
[332723878,1721480282408,-1828.63384529,0.00036623,60]
[332723879,1721480282435,-548.24077247,0.00036623,120]
[332723880,1721480282463,-607.99811215,0.00036623,120]
[332723881,1721480282490,-214071.82239452,0.00036623,30]
[332723882,1721480282518,-1096.79196057,0.00036623,30]
[332723883,1721480282545,-1721.09487878,0.00036623,120]
[332723884,1721480282570,-395.21178078,0.00036623,30]
[332723885,1721480282597,-1000.0,0.00036623,120]
[332723886,1721480282629,-1000.0,0.00036623,60]
[332723887,1721480282655,-1000.0,0.00036623,120]
[332723888,1721480282680,-1000.0,0.00036623,60]
[332723889,1721480282708,-1000.0,0.00036623,60]
[332723890,1721480282736,-1000.0,0.00036623,120]
[332723891,1721480282762,-1000.0,0.00036623,60]
[332723892,1721480282787,-1000.0,0.00036623,60]
[332723893,1721480282812,-1000.0,0.00036623,60]
[332723894,1721480282837,-1000.0,0.00036623,30]
[332723895,1721480282863,-1000.0,0.00036623,60]
[332723896,1721480282888,-1000.0,0.00036623,30]
[332723897,1721480282912,-1000.0,0.00036623,60]
[332723898,1721480282938,-1000.0,0.00036623,60]
[332723899,1721480282965,-1000.0,0.00036623,30]
[332723900,1721480282990,-1000.0,0.00036623,30]
[332723901,1721480283016,-1000.0,0.00036623,120]
[332723902,1721480283041,-1000.0,0.00036623,60]
[332723903,1721480283066,-1039.46,0.00036623,30]
[332723904,1721480283091,-5000.0,0.00036623,120]
[332723905,1721480283120,-20000.0,0.00036623,120]
[332723906,1721480283359,-1000.0,0.00036623,30]
[332723907,1721480283384,-3000.0,0.00036623,110]
[332723908,1721480283411,-3000.0,0.00036623,105]
[332723909,1721480283436,-370.0776871,0.00036623,120]
[332723910,1721480283462,-50000.0,0.00036623,60]
[332723911,1721480283487,-30000.0,0.00036623,90]
[332723912,1721480283512,-1138.0,0.00036623,30]
[332723913,1721480283538,-114701.63319858,0.00036623,120]
[332723914,1721480283564,-798.45113439,0.00036623,30]
[332723915,1721480283590,-2609.96579465,0.00036623,120]
[332723916,1721480283615,-145298.67916135,0.00036623,31]
[332723917,1721480283643,-553.3419057,0.00036623,120]
[332723918,1721480283668,-6173.21060775,0.00036623,30]
[332723919,1721480283694,-16399.09348329,0.00036623,120]
[332723920,1721480283722,-307.31388273,0.00036623,120]
[332723921,1721480283747,-6638.66105059,0.00036623,120]
[332723922,1721480283773,-1317.00649458,0.00036623,120]
[332723923,1721480283799,-642.09371128,0.00036623,30]
[332723924,1721480283825,-258.68037352,0.00036623,30]
[332723925,1721480283852,-46019.29094459,0.00036623,120]
[332723926,1721480283878,-216.3921158,0.00036623,120]
[332723927,1721480283904,-4053.78078803,0.00036623,120]
[332723928,1721480283929,-4933.96266846,0.00036623,120]
[332723929,1721480283954,-1004.21101847,0.00036623,120]
[332723930,1721480283979,-2196.82161098,0.00036623,120]
[332723931,1721480284004,-408.53497189,0.00036623,120]
[332723932,1721480284029,-1053.7041994,0.00036623,120]
[332723933,1721480284055,-8427.16089179,0.00036623,120]
[332723934,1721480284081,-2781.36334957,0.00036623,120]
[332723935,1721480284107,-20000.0,0.00036623,120]
[332723936,1721480284133,-20000.0,0.00036623,90]
[332723937,1721480284160,-20000.0,0.00036623,90]
[332723938,1721480284187,-61586.84990634,0.00036623,60]
[332723939,1721480284214,-1279.999999,0.00036623,120]
[332723940,1721480284241,-1644.22,0.00036623,30]
[332723941,1721480284267,-2000.0,0.00036623,30]
[332723942,1721480284294,-3033.2897,0.00036623,30]
[332723943,1721480284320,-159.86853441,0.00036623,30]
[332723944,1721480284346,-265.57750704,0.00036623,60]
[332723945,1721480284372,-90000.0,0.00036623,120]
[332723946,1721480284397,-1675.8602,0.00036623,30]
[332723947,1721480284422,-1288.46764913,0.00036623,30]
[332723948,1721480284447,-266.96277663,0.00036623,30]
[332723949,1721480284472,-1515.61157011,0.00036623,120]
[332723950,1721480284498,-153.94090478,0.00036623,30]
[332723951,1721480284524,-10000.0,0.00036623,120]
[332723952,1721480284551,-10000.0,0.00036623,120]
[332723953,1721480284578,-10000.0,0.00036623,120]
[332723954,1721480284604,-320.14608635,0.00036623,120]
[332723955,1721480284630,-3500.0,0.00036623,120]
[332723956,1721480284657,-985.0,0.00036623,30]
[332723957,1721480284683,-1800.23637925,0.00036623,120]
[332723958,1721480284710,-818.26838862,0.00036623,30]
[332723959,1721480284737,-86701.76743634,0.00036623,120]
[332723960,1721480284762,-398.48520466,0.00036623,60]
[332723961,1721480284787,-9681.0,0.00036623,120]
[332723962,1721480284813,-2000.0,0.00036623,30]
[332723963,1721480284838,-2000.0,0.00036623,30]
[332723964,1721480284863,-2000.0,0.00036623,30]
[332723965,1721480284888,-2000.0,0.00036623,30]
[332723966,1721480284913,-2000.0,0.00036623,30]
[332723967,1721480284939,-2000.0,0.00036623,30]
[332723968,1721480284964,-2000.0,0.00036623,30]
[332723969,1721480284989,-2000.0,0.00036623,30]
[332723970,1721480285014,-2000.0,0.00036623,30]
[332723971,1721480285039,-4872.0,0.00036623,120]
[332723972,1721480285064,-333.82562286,0.00036623,60]
[332723973,1721480285090,-2692.21510128,0.00036623,120]
[332723974,1721480285118,-1039.6942342,0.00036623,120]
[332723975,1721480285144,-793.0,0.00036623,30]
[332723976,1721480285170,-793.0,0.00036623,30]
[332723977,1721480285196,-793.0,0.00036623,30]
[332723978,1721480285223,-793.0,0.00036623,30]
[332723979,1721480285248,-793.0,0.00036623,30]
[332723980,1721480285273,-793.0,0.00036623,30]
[332723981,1721480285299,-793.0,0.00036623,30]
[332723982,1721480285325,-793.0,0.00036623,30]
[332723983,1721480285351,-793.0,0.00036623,30]
[332723984,1721480285379,-793.0,0.00036623,30]
[332723985,1721480285405,-793.0,0.00036623,30]
[332723986,1721480285431,-793.0,0.00036623,30]
[332723987,1721480285456,-793.0,0.00036623,30]
[332723988,1721480285483,-793.0,0.00036623,30]
[332723989,1721480285509,-793.0,0.00036623,30]
[332723990,1721480285534,-793.0,0.00036623,30]
[332723991,1721480285559,-793.0,0.00036623,30]
[332723992,1721480285584,-793.0,0.00036623,30]
[332723993,1721480285612,-793.0,0.00036623,30]
[332723994,1721480285638,-793.0,0.00036623,30]
[332723995,1721480285664,-793.0,0.00036623,30]
[332723996,1721480285690,-673.59990853,0.00036623,30]
[332723997,1721480285716,-793.0,0.00036623,30]
[332723998,1721480285742,-8874.0,0.00036623,120]
[332723999,1721480285768,-2649.84910689,0.00036623,30]
[332724000,1721480285794,-14081.82414797,0.00036623,120]
[332724001,1721480285820,-1266.45270257,0.00036623,120]
[332724002,1721480285847,-21891.81320534,0.00036623,120]
[332724003,1721480285876,-55102.999999,0.00036623,120]
[332724004,1721480285904,-500.0,0.00036623,120]
[332724005,1721480285931,-500.0,0.00036623,120]
[332724006,1721480285956,-500.0,0.00036623,120]
[332724007,1721480285983,-500.0,0.00036623,120]
[332724008,1721480286009,-500.0,0.00036623,120]
[332724009,1721480286035,-500.0,0.00036623,120]
[332724010,1721480286064,-500.0,0.00036623,120]
[332724011,1721480286090,-203.5592101,0.00036623,120]
[332724012,1721480286117,-1521.299999,0.00036623,30]
[332724013,1721480286144,-2000.0,0.00036623,30]
[332724014,1721480286172,-1521.299999,0.00036623,30]
[332724015,1721480286199,-259.0,0.00036623,30]
[332724016,1721480286225,-2119.75,0.00036623,50]
[332724017,1721480287216,2119.75,0.00036623,52]
[332724018,1721480287405,2119.75,0.00036623,54]
[332724019,1721480287468,2119.75,0.00036623,56]
[332724020,1721480287532,2119.75,0.00036623,58]
[332724021,1721480287610,2119.75,0.00036623,60]
[332724022,1721480287679,2119.75,0.00036623,62]
[332724023,1721480287742,2119.75,0.00036623,64]
[332724024,1721480287810,2119.75,0.00036623,66]
[332724025,1721480288037,2119.75,0.00036623,68]
[332724026,1721480288138,2119.75,0.00036623,70]
[332724027,1721480288313,2119.75,0.00036623,72]
[332724028,1721480288389,2119.75,0.00036623,74]
[332724029,1721480288764,2119.7588384,0.00036623,76]
[332724041,1721480916070,937.6,0.00010703,2]
[332724060,1721481031879,-250.00493533,0.00012613,2]
[332724061,1721481031888,-169.49,0.00012626,2]
[332724063,1721481031897,-54.51876784,0.00012643,2]
[332724064,1721481031990,-323.91123216,0.00012643,2]
[332724065,1721481032000,-200.0,0.00012651,2]
[332724066,1721481032009,-195.82,0.00012698,2]
[332724067,1721481032019,-250.0,0.00012729,2]
[332724068,1721481032029,-300.0,0.00012739,2]
[332724069,1721481032043,-170.70762422,0.0001274,2]
[332724070,1721481032102,-627.85298596,0.0001274,2]
[332724079,1721481038136,-331.745,0.0001274,2]
[332724080,1721481038194,-563.98464457,0.0001274,2]
[332724081,1721481038253,-22205.70974525,0.0001274,2]
[332724082,1721481038262,-7753.31401669,0.00012751,2]
[332724093,1721481040353,-1059.82598331,0.00012751,2]
[332724094,1721481040362,-257.55,0.00012778,2]
[332724095,1721481040372,-302.87483183,0.00012836,2]
[332724096,1721481040381,-302.35918486,0.00012847,2]
[332724097,1721481040399,-697.64081514,0.00012847,2]
[332724098,1721481040411,-146.55918486,0.00012847,2]
[332724103,1721481043325,-353.43081514,0.00012847,2]
[332724104,1721481043334,-1284.77874989,0.00012847,2]
[332724111,1721481046049,-1261.26125011,0.00012847,2]
[332724112,1721481046059,-331.74,0.00012914,2]
[332724113,1721481046068,-381.5,0.0001294,2]
[332724114,1721481046077,-937.6,0.00012967,2]
[332724115,1721481046088,-155.90872919,0.00012973,2]
[332724116,1721481046097,-3755.56,0.00012999,2]
[332724117,1721481046106,-1445.49306909,0.00013378,2]
[332724118,1721481046116,-155.0,0.00013483,2]
[332724119,1721481046126,-22884.57580472,0.00013483,2]
[332724120,1721481046135,-292.89690533,0.00013483,2]
[332724121,1721481046144,-484.42461031,0.00013489,2]
[332724122,1721481046153,-5395.34562064,0.00013489,2]
[332724123,1721481046163,-484.42461031,0.00013489,2]
[332724124,1721481046172,-274.20258471,0.00013561,2]
[332724125,1721481046181,-342.03667471,0.00013561,2]
[332724126,1721481046191,-329.44926346,0.00013579,2]
[332724127,1721481046200,-1256.40438161,0.00013698,2]
[332724128,1721481046210,-159.03,0.00013699,2]
[332724129,1721481046219,-14198.12,0.00013699,2]
[332724130,1721481046228,-552.27,0.00013699,2]
[332724131,1721481046237,-1130.6563847,0.00013699,2]
[332724132,1721481046247,-10413.41079108,0.000137,2]
[332724133,1721481046288,-6624.02448928,0.000137,2]
[332724134,1721481046299,-11914.2,0.000137,2]
[332724135,1721481046313,-506.0548444,0.000137,2]
[332724136,1721481046325,-556.3,0.000137,2]
[332724138,1721481130105,9346.142491,0.00011,2]
[332724143,1721481178826,-188.11,0.00012867,2]
[332724144,1721481178848,-300.16515746,0.00012924,2]
[332724145,1721481178868,-269.19545097,0.00012924,2]
[332724146,1721481178889,-164.092104,0.00012924,2]
[332724147,1721481178911,-168.53982402,0.00012924,2]
[332724148,1721481178932,-1847.45336442,0.00012928,2]
[332724149,1721481178953,-500.0,0.00012928,2]
[332724150,1721481178973,-329.44926346,0.00012928,2]
[332724151,1721481178994,-837.60292107,0.00012928,2]
[332724152,1721481179017,-837.60292107,0.00012928,2]
[332724153,1721481179039,-300.0,0.00012972,2]
[332724154,1721481179061,-32198.0,0.00013352,2]
[332724155,1721481179083,-1847.41,0.00013416,2]
[332724156,1721481179105,-155.06963622,0.0001367,2]
[332724157,1721481179128,-155.0,0.00013698,2]
[332724158,1721481179149,-150.0,0.00013698,2]
[332724159,1721481179172,-161.38,0.00013699,2]
[332724160,1721481179196,-9236.68269313,0.00013699,2]
[332724161,1721481179218,-28673.84937187,0.000137,2]
[332724162,1721481179241,-500.0,0.000137,2]
[332724163,1721481179263,-1588.8313,0.000137,2]
[332724164,1721481179283,-155.0,0.0001372,2]
[332724165,1721481179304,-155.0,0.0001372,2]
[332724166,1721481179328,-12220.6437057,0.0001379,2]
[332724167,1721481179349,-1000.0,0.000138,2]
[332724168,1721481179370,-165.56104556,0.000138,2]
[332724169,1721481179391,-377.06963042,0.000138,2]
[332724170,1721481179412,-7500.0,0.000138,2]
[332724171,1721481179706,-158.78327468,0.000138,2]
[332724172,1721481179726,-180.19668508,0.000138,2]
[332724173,1721481179748,-324.17175137,0.000138,2]
[332724174,1721481179770,-264.18139499,0.000138,2]
[332724175,1721481179791,-1913.05938326,0.000138,2]
[332724176,1721481179812,-1147.4297128,0.000138,2]
[332724177,1721481179833,-606.84842258,0.000138,2]
[332724178,1721481179854,-606.84842258,0.000138,2]
[332724179,1721481179875,-220.51,0.00013808,3]
[332724180,1721481179896,-324.17175134,0.00013814,2]
[332724181,1721481179918,-324.17175134,0.00013829,2]
[332724182,1721481179939,-500.0,0.00013838,2]
[332724183,1721481179961,-200.0,0.00013838,2]
[332724184,1721481179982,-324.17175134,0.00013843,2]
[332724185,1721481180004,-324.17175134,0.00013857,2]
[332724186,1721481180025,-324.17175134,0.00013871,2]
[332724187,1721481180047,-264.03468326,0.00013879,2]
[332724188,1721481180071,-324.17175134,0.00013886,2]
[332724189,1721481180094,-500.0,0.00013887,2]
[332724190,1721481180116,-200.0,0.00013887,2]
[332724191,1721481180140,-155.0,0.00013889,2]
[332724192,1721481180161,-155.0,0.00013889,2]
[332724193,1721481180183,-2654.42855211,0.0001389,2]
[332724194,1721481180205,-173.17379423,0.00013899,2]
[332724195,1721481180227,-2650.1053496,0.00013899,2]
[332724196,1721481180249,-111459.48967605,0.000139,2]
[332724213,1721481506865,859.1,0.00010829,2]
[332724263,1721482135528,857.07,0.0001065,2]
[332724276,1721482232095,-508.47198714,0.00012521,2]
[332724277,1721482232126,-208.63801286,0.00012521,2]
[332724278,1721482232137,-200.0,0.00012581,2]
[332724279,1721482232147,-258.7243624,0.00012581,2]
[332724280,1721482232160,-1008.15363855,0.00012581,2]
[332724281,1721482232170,-250.0,0.00012588,2]
[332724282,1721482232179,-305.2,0.00012594,2]
[332724283,1721482232188,-300.0,0.00012672,2]
[332724284,1721482232197,-6353.42173962,0.00012673,2]
[332724285,1721482232238,-17546.57826038,0.00012673,2]
[332724286,1721482232247,-168.65,0.00012739,2]
[332724287,1721482232256,-353.73203888,0.00012826,2]
[332724288,1721482232266,-300.16515746,0.00012855,2]
[332724289,1721482232274,-342.03667471,0.00012855,2]
[332724290,1721482232283,-293.11135528,0.00012883,2]
[332724291,1721482232292,-857.07,0.00012914,2]
[332724292,1721482232301,-946.5561817,0.00012928,2]
[332724293,1721482232311,-528.92401518,0.00012928,2]
[332724294,1721482232320,-529.81553842,0.00012995,2]
[332724295,1721482232330,-767.43057442,0.0001305,2]
[332724296,1721482232340,-499.99,0.00013093,2]
[332724297,1721482232349,-1801.86,0.00013125,2]
[332724298,1721482232358,-757.15225135,0.00013303,2]
[332724299,1721482232367,-280.43554768,0.00013529,2]
[332724300,1721482232376,-202.5999635,0.00013579,2]
[332724301,1721482232385,-150.4,0.00013607,2]
[332724302,1721482232395,-150.4,0.00013612,2]
[332724303,1721482232404,-150.4,0.00013616,2]
[332724304,1721482232413,-150.4,0.00013621,2]
[332724305,1721482232424,-150.0,0.00013625,2]
[332724306,1721482232433,-150.4,0.00013625,2]
[332724307,1721482232443,-150.4,0.0001363,2]
[332724308,1721482232454,-150.4,0.00013635,2]
[332724309,1721482232464,-150.4,0.00013639,2]
[332724310,1721482232473,-150.4,0.00013644,2]
[332724311,1721482232483,-150.4,0.00013648,2]
[332724312,1721482232492,-150.4,0.00013653,2]
[332724313,1721482232501,-150.4,0.00013657,2]
[332724314,1721482232510,-150.4,0.00013662,2]
[332724315,1721482232520,-150.4,0.00013666,2]
[332724316,1721482232530,-776.223,0.0001367,2]
[332724317,1721482232541,-150.4,0.00013671,2]
[332724318,1721482232554,-150.4,0.00013675,2]
[332724319,1721482232563,-276.13,0.00013699,2]
[332724320,1721482232573,-1000.0,0.000137,2]
[332724321,1721482232582,-2500.0,0.000137,2]
[332724322,1721482232593,-155.11417213,0.000137,2]
[332724323,1721482232602,-155.11417211,0.0001374,2]
[332724324,1721482232612,-155.11417211,0.0001378,2]
[332724325,1721482232621,-335.60747496,0.00013789,2]
[332724326,1721482232632,-12046.99702229,0.0001379,2]
[332724327,1721482232642,-1000.0,0.00013799,2]
[332724328,1721482232651,-500.0,0.000138,2]
[332724329,1721482232661,-44928.46516964,0.000138,2]
[332724330,1721482232682,-643.35469944,0.000138,2]
[332724331,1721482232718,-2499.76237859,0.00012391,2]
[332724332,1721482232728,-4169.73692141,0.000138,2]
[332724333,1721482232740,-1091.85072106,0.000138,2]
[332724334,1721482232776,-769.36060843,0.000138,2]
[332724342,1721482238579,-279.36,0.00012517,2]
[332724347,1721482240242,-720.64,0.00012517,2]
[332724348,1721482240252,-1945.220804,0.000138,2]
[332724396,1721482244007,-300.24814177,0.000138,2]
[332724398,1721482246384,-865.5377,0.000138,2]
[332724413,1721482246853,-651.87003358,0.000138,2]
[332724414,1721482670667,610.98,0.00010959,2]
[332724415,1721482719455,171.03,0.0001029,2]
[332724417,1721482770226,786.69,0.00010852,2]
[332724419,1721482795419,1689.56694123,0.0001029,2]
[332724420,1721482798428,180.82579411,0.0001029,2]
[332724421,1721483011022,6991.02,0.00011959,2]
[332724441,1721483140644,3398.69324409,0.00011959,2]
[332724442,1721483151192,366.95941435,0.00011959,2]
[332724447,1721483275553,300.0,0.000133,4]
[332724448,1721483277645,600.0,0.000134,4]
[332724449,1721483279749,900.0,0.000135,4]
[332724451,1721483281853,1300.0,0.000136,4]
[332724452,1721483283975,1600.0,0.000137,5]
[332724453,1721483286085,300.0,0.000138,5]
[332724454,1721483288193,300.0,0.000139,5]
[332724455,1721483321284,747.35,0.00010375,2]
[332724513,1721483393335,7564.77593494,0.00011959,2]
[332724514,1721483409716,150.0,0.00013899,7]
[332724515,1721483411091,150.0,0.00013899,7]
[332724516,1721483412058,150.0,0.00013899,7]
[332724522,1721483432310,-722.04,0.00012222,2]
[332724523,1721483432321,-250.0,0.00012278,2]
[332724524,1721483432330,-1245.75,0.00012328,2]
[332724525,1721483432340,-500.0,0.00012333,2]
[332724526,1721483432349,-370.8055,0.0001236,2]
[332724527,1721483432431,-67.4745,0.0001236,2]
[332724528,1721483432441,-150.48,0.0001238,2]
[332724529,1721483432451,-261.28,0.00012441,2]
[332724530,1721483432460,-251.40462031,0.0001254,2]
[332724531,1721483432469,-2835.98042277,0.0001254,2]
[332724532,1721483432478,-1000.0,0.00012567,2]
[332724533,1721483432486,-300.0,0.00012629,2]
[332724534,1721483432495,-150.0,0.0001263,2]
[332724535,1721483432505,-309.71,0.0001263,2]
[332724536,1721483432514,-999.99,0.0001263,2]
[332724537,1721483432523,-270.32,0.0001263,2]
[332724538,1721483432532,-747.35,0.00012639,2]
[332724539,1721483432541,-23900.0,0.00012654,2]
[332724540,1721483432550,-499.99,0.00012749,2]
[332724541,1721483432559,-150.99,0.0001285,2]
[332724542,1721483432568,-796.55,0.0001285,2]
[332724543,1721483432577,-150.99,0.0001285,2]
[332724544,1721483432586,-168.86,0.00012851,2]
[332724545,1721483432595,-245.77,0.00012851,2]
[332724546,1721483432604,-171.36,0.00012886,2]
[332724547,1721483432613,-6299.01173384,0.00013,2]
[332724548,1721483432622,-206.04,0.00013054,2]
[332724549,1721483432631,-270.14625122,0.00013199,2]
[332724550,1721483432640,-155.72814289,0.00013283,2]
[332724551,1721483432649,-155.0,0.00013398,2]
[332724552,1721483432658,-280.43554769,0.00013459,2]
[332724553,1721483432667,-1030.0,0.000135,2]
[332724554,1721483432677,-155.11417211,0.0001351,2]
[332724555,1721483432686,-5277.0919114,0.00013579,2]
[332724556,1721483432695,-245000.0,0.000136,2]
[332724557,1721483432704,-377.8357712,0.000136,2]
[332724558,1721483432713,-178.54830156,0.0001361,2]
[332724559,1721483432722,-320.29617739,0.00013622,2]
[332724560,1721483432731,-173.43,0.0001367,2]
[332724561,1721483432740,-161.38,0.00013699,2]
[332724562,1721483432749,-276.13,0.00013699,2]
[332724563,1721483432758,-329.44926346,0.00013699,2]
[332724564,1721483432767,-8334.6724,0.000137,2]
[332724565,1721483432776,-500.0,0.000137,2]
[332724566,1721483432785,-2622.9738,0.000137,2]
[332724567,1721483432794,-224.5221,0.000137,2]
[332724568,1721483432803,-44602.42026766,0.000137,2]
[332724569,1721483432814,-2589.02150942,0.000137,2]
[332724570,1721483432893,-913.25393759,0.000137,2]
[332724571,1721483432935,-26675.59576002,0.000137,2]
[332724582,1721483438335,-333.49437701,0.000137,2]
[332724583,1721483438539,-1068.89864221,0.000137,2]
[332724763,1721483440525,-23817.31550609,0.000137,2]
[332724764,1721483440536,-31134.01055606,0.000137,2]
[332725312,1721483446547,-200.0,0.00013046,2]
[332725314,1721483446557,-1728.3792352,0.000137,2]
[332725320,1721483446598,-1522.96123696,0.000137,2]
[332725322,1721483446609,-1696.35356843,0.000137,2]
[332725324,1721483446622,-615.06694339,0.000137,2]
[332725336,1721483446714,-14487.79515996,0.000137,2]
[332725338,1721483446723,-1000.0,0.000137,2]
[332725340,1721483446733,-39477.9832,0.000137,2]
[332725342,1721483446744,-155.11417211,0.00013705,2]
[332725344,1721483446753,-11459.10746798,0.00013761,2]
[332725977,1721483669343,2835.98042277,0.00011959,2]
[332725978,1721483746256,180.1637824,0.00011959,2]
[332725979,1721483823520,155.0,0.00011959,2]
[332725980,1721483832929,737.98964315,0.00013899,5]
[332725981,1721483868676,688.3,0.00010835,2]
[332725982,1721484155264,-164.83,0.00012555,2]
[332725983,1721484155284,-250.0,0.00012665,2]
[332725984,1721484155305,-267.17,0.00012671,2]
[332725988,1721484434370,653.88,0.00010541,2]
[332726012,1721484631592,-250.0,0.00012447,2]
[332726013,1721484631602,-168.86,0.00012595,2]
[332726014,1721484631611,-200.0,0.00012645,2]
[332726015,1721484631620,-775.50119786,0.00012671,2]
[332726016,1721484631632,-3485.23641543,0.00012671,2]
[332726017,1721484631666,-1042.5,0.00012671,2]
[332726018,1721484631677,-2807.53512977,0.00012671,2]
[332726019,1721484631688,-1646.99725694,0.00012671,2]
[332726020,1721484631697,-1000.0,0.00012694,2]
[332726021,1721484631707,-216.93020437,0.00012696,2]
[332726022,1721484631716,-521.65741776,0.00012749,2]
[332726023,1721484631725,-529.1227807,0.00012777,2]
[332726024,1721484631734,-244.74507675,0.00012777,2]
[332726025,1721484631743,-653.88,0.00012805,2]
[332726026,1721484631753,-2638.6152869,0.00012818,2]
[332726027,1721484631763,-194.11788119,0.00012818,2]
[332726028,1721484631772,-169.13,0.00012839,2]
[332726029,1721484631781,-890.6234166,0.00012883,2]
[332726030,1721484631790,-890.6234166,0.00012883,2]
[332726031,1721484631799,-244.16,0.00012885,2]
[332726032,1721484631809,-150.0,0.00013123,2]
[332726033,1721484631819,-499.99,0.00013125,2]
[332726034,1721484631828,-18763.13927962,0.00013125,2]
[332726035,1721484631843,-9496.71389071,0.00013125,2]
[332726036,1721484631913,-706.11031433,0.00013125,2]
[332726109,1721484639072,-367.28327246,0.00013066,2]
[332726110,1721484639081,-9479.20651534,0.00013125,2]
[332726111,1721484639091,-155.08184168,0.00013165,2]
[332726112,1721484639100,-881.37361149,0.00013283,2]
[332726113,1721484639121,-4513.97200915,0.00013283,2]
[332726114,1721484639132,-235.35180385,0.00013302,2]
[332726115,1721484639141,-363.65926823,0.0001331,2]
[332726116,1721484639153,-5673.1771,0.000135,2]
[332726117,1721484639162,-220.84,0.00013507,3]
[332726118,1721484639172,-155.0,0.00013561,2]
[332726119,1721484639181,-167.99075669,0.00013561,2]
[332726120,1721484639190,-3969.9594,0.000136,2]
[332726121,1721484639200,-593.93926208,0.000136,2]
[332726122,1721484639266,-7089.56215671,0.000136,2]
[332726137,1721484639712,-756.08487059,0.00012855,2]
[332726138,1721484639725,-134.53854601,0.00012855,2]
[332726139,1721484639735,-179.89981723,0.00013199,2]
[332726140,1721484639748,-201.53763763,0.00013199,2]
[332726141,1721484639758,-159.35172731,0.00013302,2]
[332726142,1721484639767,-1807.70706506,0.000136,2]
[332726505,1721484645962,-651.92165646,0.000136,2]
[332726506,1721484645975,-688.87014568,0.000136,2]
[332726514,1721484967165,612.46,0.00010881,2]
[332726515,1721485005816,156.0,6e-08,120]
[332726516,1721485188367,406.97653481,5e-05,2]
[332726517,1721485255597,500.0,6.061e-05,2]
[332726520,1721485378341,227.99526474,0.00011959,2]
[332726521,1721485386771,155.16034983,0.00011959,2]
[332726522,1721485388381,251.65728156,0.00011959,2]
[332726534,1721485403585,157.05432231,7.347e-05,2]
[332726536,1721485406165,159.08051389,0.00011959,2]
[332726537,1721485445350,155.0,0.00011959,2]
[332726543,1721485661556,581.83,0.00010745,2]
[332726576,1721485832236,-164.83,0.00012616,2]
[332726577,1721485832246,-836.5184,0.00012616,2]
[332726578,1721485832257,-163.4816,0.00012616,2]
[332726579,1721485832267,-634.08,0.00012616,2]
[332726580,1721485832276,-195.32,0.00012667,2]
[332726581,1721485832287,-48.1584,0.00012681,2]
[332726582,1721485832300,-111.19332731,0.00012681,2]
[332726583,1721485832310,-168.23,0.0001276,2]
[332726584,1721485832319,-202.98839586,0.00012818,2]
[332726585,1721485832329,-150.48,0.00012886,2]
[332726586,1721485832339,-174.85149445,0.00012995,2]
[332726587,1721485832348,-342.03667471,0.00013,2]
[332726588,1721485832357,-581.83,0.00013009,2]
[332726589,1721485832366,-275.84610767,0.00013024,2]
[332726590,1721485832467,-90.46438834,0.00013024,2]
[332726591,1721485832476,-521.65741776,0.00013024,2]
[332726592,1721485832486,-399.50857896,0.00013145,2]
[332726593,1721485832497,-457.29170079,0.00013145,2]
[332726596,1721485837782,-143.18972025,0.00013145,2]